fUST/lending_fUST_20250520
["ID","MTS","AMOUNT","RATE_DAILY","PERIOD"]
[361690825,1747693874452,-551.77,0.00021369,2]
[361690826,1747693874463,-533.4,0.00021369,2]
[361690827,1747693874473,-546.01,0.00021369,2]
[361690828,1747693874483,-1186.61,0.00021369,2]
[361690829,1747693874493,-691.74,0.00021369,2]
[361690830,1747693874503,-536.58,0.00021369,2]
[361690831,1747693874513,-587.23,0.00021369,2]
[361690832,1747693874523,-1193.12,0.00021369,2]
[361690833,1747693874534,-1021.33,0.00021369,2]
[361690834,1747693874545,-1095.83,0.00021369,2]
[361690835,1747693874555,-500.0,0.00021373,2]
[361690836,1747693874565,-179.2743012,0.00021452,2]
[361690837,1747693874576,-1159.3892112,0.00021486,5]
[361690838,1747693874586,-1500.0,0.00021486,2]
[361690839,1747693874596,-988.35524432,0.00021486,2]
[361690840,1747693874605,-1500.0,0.00021486,2]
[361690841,1747693874615,-1500.0,0.00021486,2]
[361690842,1747693874624,-1800.0,0.00021486,2]
[361690843,1747693874634,-1500.0,0.00021486,2]
[361690844,1747693874643,-570.35,0.000215,14]
[361690845,1747693874653,-651.52,0.00021643,2]
[361690846,1747693874662,-430.0,0.00021643,2]
[361690847,1747693874672,-430.0,0.00021643,2]
[361690848,1747693874751,-430.0,0.00021643,2]
[361690849,1747693874760,-732.74,0.00021643,2]
[361690850,1747693874770,-430.0,0.00021643,2]
[361690851,1747693874778,-430.0,0.00021643,2]
[361690852,1747693874789,-430.0,0.00021643,2]
[361690853,1747693874798,-509.72,0.00021643,2]
[361690854,1747693874807,-430.0,0.00021643,2]
[361690855,1747693874817,-430.0,0.00021643,2]
[361690856,1747693874827,-430.0,0.00021643,2]
[361690857,1747693874836,-430.0,0.00021643,2]
[361690858,1747693874846,-437.51,0.00021643,2]
[361690859,1747693874856,-584.57,0.00021643,2]
[361690860,1747693874865,-430.0,0.00021643,2]
[361690861,1747693874874,-430.0,0.00021643,2]
[361690862,1747693874883,-597.19,0.00021643,2]
[361690863,1747693874892,-821.41,0.00021643,2]
[361690864,1747693874901,-430.0,0.00021643,2]
[361690865,1747693874910,-430.0,0.00021643,2]
[361690866,1747693874919,-430.0,0.00021643,2]
[361690867,1747693874930,-451.97,0.00021643,2]
[361690868,1747693874939,-430.0,0.00021643,2]
[361690869,1747693874948,-628.93,0.00021643,2]
[361690870,1747693874957,-826.72,0.00021643,2]
[361690871,1747693874967,-457.8,0.00021643,2]
[361690872,1747693874977,-788.12,0.00021643,2]
[361690873,1747693874986,-430.0,0.00021643,2]
[361690874,1747693874995,-541.45,0.00021643,2]
[361690875,1747693875004,-430.0,0.00021643,2]
[361690876,1747693875013,-645.45,0.00021643,2]
[361690877,1747693875022,-430.0,0.00021643,2]
[361690878,1747693875031,-430.0,0.00021643,2]
[361690879,1747693875040,-442.09,0.00021643,2]
[361690880,1747693875049,-560.02,0.00021643,2]
[361690881,1747693875058,-772.82,0.00021643,2]
[361690882,1747693875068,-430.0,0.00021643,2]
[361690883,1747693875077,-430.0,0.00021643,2]
[361690884,1747693875086,-688.5,0.00021643,2]
[361690885,1747693875096,-616.06,0.00021643,2]
[361690886,1747693875106,-430.0,0.00021643,2]
[361690887,1747693875116,-455.92,0.00021643,2]
[361690888,1747693875125,-430.0,0.00021643,2]
[361690889,1747693875134,-430.0,0.00021643,2]
[361690890,1747693875143,-430.0,0.00021643,2]
[361690891,1747693875154,-1238.66,0.00021643,2]
[361690892,1747693875163,-681.65,0.00021643,2]
[361690893,1747693875172,-862.58,0.00021643,2]
[361690894,1747693875181,-724.76,0.00021643,2]
[361690895,1747693875191,-430.0,0.00021643,2]
[361690896,1747693875199,-718.44,0.00021643,2]
[361690897,1747693875209,-1486.21,0.00021643,2]
[361690898,1747693875218,-436.65,0.00021643,2]
[361690899,1747693875231,-1409.24,0.00021643,2]
[361690900,1747693875241,-1956.59,0.00021643,2]
[361690901,1747693875251,-621.1,0.00021643,2]
[361690902,1747693875260,-430.0,0.00021643,2]
[361690903,1747693875271,-479.24,0.00021643,2]
[361690904,1747693875282,-652.6,0.00021643,2]
[361690905,1747693875291,-3564.26,0.00021643,2]
[361690906,1747693875300,-625.58,0.00021643,2]
[361690907,1747693875311,-531.21,0.00021643,2]
[361690908,1747693875321,-430.0,0.00021643,2]
[361690909,1747693875330,-430.0,0.00021643,2]
[361690910,1747693875339,-917.56,0.00021643,2]
[361690911,1747693875348,-1059.44,0.00021643,2]
[361690912,1747693875357,-963.29,0.00021643,2]
[361690913,1747693875367,-2463.34,0.00021643,2]
[361690914,1747693875377,-1322.67,0.00021643,2]
[361690915,1747693875386,-989.85,0.00021643,2]
[361690916,1747693875395,-472.87,0.00021643,2]
[361690917,1747693875405,-1071.91,0.00021643,2]
[361690918,1747693875414,-1365.37,0.00021643,2]
[361690919,1747693875424,-435.96,0.00021643,2]
[361690920,1747693875434,-6970.38,0.00021643,2]
[361690921,1747693875443,-572.38,0.00021643,2]
[361690922,1747693875452,-492.52,0.00021643,2]
[361690923,1747693875461,-1276.02,0.00021643,2]
[361690924,1747693875471,-2285.96,0.00021643,2]
[361690925,1747693875480,-1674.68,0.00021643,2]
[361690926,1747693875490,-430.0,0.00021643,2]
[361690927,1747693875499,-430.0,0.00021643,2]
[361690928,1747693875508,-332.5003316,0.00021643,2]
[361690929,1747693875518,-1177.1,0.00021643,2]
[361690930,1747693875527,-4144.0,0.00021643,2]
[361690931,1747693875539,-430.0,0.00021643,2]
[361690932,1747693875548,-4514.42,0.00021643,2]
[361690933,1747693875558,-589.39,0.00021643,2]
[361690934,1747693875567,-2345.01,0.00021643,2]
[361690935,1747693875577,-318.04887516,0.00021643,2]
[361690936,1747693875587,-1255.98,0.00021643,2]
[361690937,1747693875596,-1428.09,0.00021643,2]
[361690938,1747693875605,-1007.3,0.00021643,2]
[361690939,1747693875615,-430.0,0.00021643,2]
[361690940,1747693875625,-430.0,0.00021643,2]
[361690941,1747693875636,-430.0,0.00021643,2]
[361690942,1747693875645,-567.37,0.00021643,2]
[361690943,1747693875655,-1170.71,0.00021643,2]
[361690944,1747693875665,-430.0,0.00021643,2]
[361690945,1747693875674,-6164.94,0.00021643,2]
[361690946,1747693875684,-1695.82,0.00021643,2]
[361690947,1747693875693,-1029.82,0.00021643,2]
[361690948,1747693875703,-1142.01,0.00021643,2]
[361690949,1747693875713,-430.0,0.00021643,2]
[361690950,1747693875722,-503.28,0.00021643,2]
[361690951,1747693875731,-1592.78,0.00021643,2]
[361690952,1747693875741,-1295.39,0.00021643,2]
[361690953,1747693875751,-670.07,0.00021643,2]
[361690954,1747693875760,-430.0,0.00021643,2]
[361690955,1747693875770,-1232.45,0.00021643,2]
[361690956,1747693875781,-1017.31,0.00021643,2]
[361690957,1747693875790,-430.0,0.00021643,2]
[361690958,1747693875799,-1326.53,0.00021643,2]
[361690959,1747693875809,-518.75296058,0.00021643,2]
[361690960,1747693875818,-1258.46,0.00021643,2]
[361690961,1747693875827,-2643.08,0.00021643,2]
[361690962,1747693875837,-349.24,0.00021643,2]
[361690963,1747693875846,-430.0,0.00021643,2]
[361690964,1747693875856,-1678.98,0.00021643,2]
[361690965,1747693875865,-430.0,0.00021643,2]
[361690966,1747693875875,-670.64,0.00021643,2]
[361690967,1747693875884,-872.02,0.00021643,2]
[361690968,1747693875894,-430.0,0.00021643,2]
[361690969,1747693875903,-430.0,0.00021643,2]
[361690970,1747693875913,-993.14,0.00021643,2]
[361690971,1747693875922,-747.98,0.00021643,2]
[361690972,1747693875931,-867.01,0.00021643,2]
[361690973,1747693875941,-561.84,0.00021643,2]
[361690974,1747693875950,-896.57,0.00021643,2]
[361690975,1747693875960,-846.37,0.00021643,2]
[361690976,1747693875970,-489.72,0.00021643,2]
[361690977,1747693875980,-507.94,0.00021643,2]
[361690978,1747693875989,-430.0,0.00021643,2]
[361690979,1747693875998,-551.77,0.00021643,2]
[361690980,1747693876008,-533.4,0.00021643,2]
[361690981,1747693876017,-546.01,0.00021643,2]
[361690982,1747693876026,-1186.61,0.00021643,2]
[361690983,1747693876036,-691.74,0.00021643,2]
[361690984,1747693876046,-536.58,0.00021643,2]
[361690985,1747693876056,-587.23,0.00021643,2]
[361690986,1747693876066,-1193.12,0.00021643,2]
[361690987,1747693876075,-1021.33,0.00021643,2]
[361690988,1747693876084,-1095.83,0.00021643,2]
[361690989,1747693876095,-6523.42894091,0.00021645,2]
[361690990,1747693876104,-1400.0,0.00021657,2]
[361690991,1747693876114,-3000.0,0.00021688,2]
[361690992,1747693876124,-1000.0,0.00021727,2]
[361690993,1747693876134,-1000.0,0.00021727,2]
[361690994,1747693876144,-538.36043808,0.00021727,2]
[361690995,1747693876153,-1000.0,0.00021727,2]
[361690996,1747693876163,-1500.0,0.00021756,2]
[361690997,1747693876172,-1500.0,0.00021756,2]
[361690998,1747693876182,-1500.0,0.00021756,2]
[361690999,1747693876191,-1500.0,0.00021756,2]
[361691000,1747693876200,-1500.0,0.00021756,2]
[361691001,1747693876210,-1500.0,0.00021756,2]
[361691002,1747693876220,-1500.0,0.00021756,2]
[361691003,1747693876231,-1500.0,0.00021756,2]
[361691004,1747693876241,-1318.30808655,0.00021756,2]
[361691005,1747693876250,-1500.0,0.00021756,2]
[361691006,1747693876260,-1500.0,0.00021756,2]
[361691007,1747693876270,-1500.0,0.00021756,2]
[361691008,1747693876279,-533.05935321,0.00021756,2]
[361691009,1747693876289,-1508.48726565,0.00021756,2]
[361691010,1747693876299,-1500.0,0.00021756,2]
[361691011,1747693876308,-1159.3892112,0.00021762,5]
[361691012,1747693876318,-546.0,0.00021778,2]
[361691013,1747693876328,-2235.0,0.00021778,2]
[361691014,1747693876337,-639.93910571,0.000219,2]
[361691015,1747693876346,-306.0,0.00021909,2]
[361691016,1747693876355,-651.52,0.00021917,2]
[361691017,1747693876365,-430.0,0.00021917,2]
[361691018,1747693876375,-430.0,0.00021917,2]
[361691019,1747693876385,-510.05446472,0.00021917,2]
[361691020,1747693876394,-732.74,0.00021917,2]
[361691021,1747693876403,-430.0,0.00021917,2]
[361691022,1747693876414,-171.29,0.00021917,2]
[361691023,1747693876424,-171.29,0.00021917,2]
[361691024,1747693876434,-171.29,0.00021917,2]
[361691025,1747693876444,-171.29,0.00021917,2]
[361691026,1747693876453,-171.29,0.00021917,2]
[361691027,1747693876462,-171.29,0.00021917,2]
[361691028,1747693876472,-171.29,0.00021917,2]
[361691029,1747693876482,-171.29,0.00021917,2]
[361691030,1747693876492,-171.29,0.00021917,2]
[361691031,1747693876501,-171.29,0.00021917,2]
[361691032,1747693876511,-171.29,0.00021917,2]
[361691033,1747693876521,-171.29,0.00021917,2]
[361691034,1747693876531,-171.29,0.00021917,2]
[361691035,1747693876540,-171.29,0.00021917,2]
[361691036,1747693876550,-430.0,0.00021917,2]
[361691037,1747693876560,-430.0,0.00021917,2]
[361691038,1747693876569,-509.72,0.00021917,2]
[361691039,1747693876579,-430.0,0.00021917,2]
[361691040,1747693876588,-430.0,0.00021917,2]
[361691041,1747693876598,-430.0,0.00021917,2]
[361691042,1747693876608,-281.59144406,0.00021917,2]
[361691043,1747693876618,-437.51,0.00021917,2]
[361691044,1747693876628,-584.57,0.00021917,2]
[361691045,1747693876638,-430.0,0.00021917,2]
[361691046,1747693876647,-430.0,0.00021917,2]
[361691047,1747693876656,-597.19,0.00021917,2]
[361691048,1747693876666,-821.41,0.00021917,2]
[361691049,1747693876676,-430.0,0.00021917,2]
[361691050,1747693876685,-430.0,0.00021917,2]
[361691051,1747693876695,-430.0,0.00021917,2]
[361691052,1747693876704,-430.0,0.00021917,2]
[361691053,1747693876714,-430.0,0.00021917,2]
[361691054,1747693876724,-430.0,0.00021917,2]
[361691055,1747693876734,-430.0,0.00021917,2]
[361691056,1747693876743,-430.0,0.00021917,2]
[361691057,1747693876753,-430.0,0.00021917,2]
[361691058,1747693876762,-287.39572463,0.00021917,2]
[361691059,1747693876772,-430.0,0.00021917,2]
[361691060,1747693876781,-451.97,0.00021917,2]
[361691061,1747693876790,-339.63825589,0.00021917,2]
[361691062,1747693876800,-628.93,0.00021917,2]
[361691063,1747693876810,-826.72,0.00021917,2]
[361691064,1747693876819,-5000.0,0.00021917,2]
[361691065,1747693876829,-5000.0,0.00021917,2]
[361691066,1747693876838,-5000.0,0.00021917,2]
[361691067,1747693876848,-5000.0,0.00021917,2]
[361691068,1747693876858,-5000.0,0.00021917,2]
[361691069,1747693876867,-5000.0,0.00021917,2]
[361691070,1747693876876,-5000.0,0.00021917,2]
[361691071,1747693876886,-5000.0,0.00021917,2]
[361691072,1747693876896,-5000.0,0.00021917,2]
[361691073,1747693876905,-5000.0,0.00021917,2]
[361691074,1747693876915,-5000.0,0.00021917,2]
[361691075,1747693876924,-5000.0,0.00021917,2]
[361691076,1747693876934,-5000.0,0.00021917,2]
[361691077,1747693876943,-5000.0,0.00021917,2]
[361691078,1747693876953,-457.8,0.00021917,2]
[361691079,1747693876963,-788.12,0.00021917,2]
[361691080,1747693876972,-430.0,0.00021917,2]
[361691081,1747693876982,-541.45,0.00021917,2]
[361691082,1747693876991,-430.0,0.00021917,2]
[361691083,1747693877000,-645.45,0.00021917,2]
[361691084,1747693877009,-430.0,0.00021917,2]
[361691085,1747693877018,-531.14,0.00021917,2]
[361691086,1747693877028,-560.02,0.00021917,2]
[361691087,1747693877038,-772.82,0.00021917,2]
[361691088,1747693877047,-432.86230062,0.00021917,2]
[361691089,1747693877056,-430.0,0.00021917,2]
[361691090,1747693877066,-688.5,0.00021917,2]
[361691091,1747693877075,-616.06,0.00021917,2]
[361691092,1747693877084,-541.14815814,0.00021917,2]
[361691093,1747693877092,-455.92,0.00021917,2]
[361691094,1747693877101,-430.0,0.00021917,2]
[361691095,1747693877111,-430.0,0.00021917,2]
[361691096,1747693877120,-430.0,0.00021917,2]
[361691097,1747693877129,-1238.66,0.00021917,2]
[361691098,1747693877139,-681.65,0.00021917,2]
[361691099,1747693877148,-862.58,0.00021917,2]
[361691100,1747693877157,-724.76,0.00021917,2]
[361691101,1747693877167,-430.0,0.00021917,2]
[361691102,1747693877176,-718.44,0.00021917,2]
[361691103,1747693877186,-1486.21,0.00021917,2]
[361691104,1747693877195,-436.65,0.00021917,2]
[361691105,1747693877205,-1409.24,0.00021917,2]
[361691106,1747693877214,-1956.59,0.00021917,2]
[361691107,1747693877224,-621.1,0.00021917,2]
[361691108,1747693877236,-430.0,0.00021917,2]
[361691109,1747693877246,-649.53,0.00021917,2]
[361691110,1747693877255,-649.53,0.00021917,2]
[361691111,1747693877264,-649.53,0.00021917,2]
[361691112,1747693877274,-649.53,0.00021917,2]
[361691113,1747693877283,-649.53,0.00021917,2]
[361691114,1747693877293,-649.53,0.00021917,2]
[361691115,1747693877302,-649.53,0.00021917,2]
[361691116,1747693877311,-649.53,0.00021917,2]
[361691117,1747693877321,-649.53,0.00021917,2]
[361691118,1747693877330,-649.53,0.00021917,2]
[361691119,1747693877339,-649.53,0.00021917,2]
[361691120,1747693877349,-649.53,0.00021917,2]
[361691121,1747693877358,-649.53,0.00021917,2]
[361691122,1747693877367,-649.53,0.00021917,2]
[361691123,1747693877377,-479.24,0.00021917,2]
[361691124,1747693877386,-652.6,0.00021917,2]
[361691125,1747693877396,-430.0,0.00021917,2]
[361691126,1747693877405,-430.0,0.00021917,2]
[361691127,1747693877415,-430.0,0.00021917,2]
[361691128,1747693877425,-430.0,0.00021917,2]
[361691129,1747693877435,-3564.26,0.00021917,2]
[361691130,1747693877446,-430.0,0.00021917,2]
[361691131,1747693877458,-430.0,0.00021917,2]
[361691132,1747693877467,-430.0,0.00021917,2]
[361691133,1747693877477,-430.0,0.00021917,2]
[361691134,1747693877486,-430.0,0.00021917,2]
[361691135,1747693877496,-430.0,0.00021917,2]
[361691136,1747693877505,-625.58,0.00021917,2]
[361691137,1747693877515,-430.0,0.00021917,2]
[361691138,1747693877525,-430.0,0.00021917,2]
[361691139,1747693877536,-430.0,0.00021917,2]
[361691140,1747693877545,-430.0,0.00021917,2]
[361691141,1747693877555,-531.21,0.00021917,2]
[361691142,1747693877564,-430.0,0.00021917,2]
[361691143,1747693877573,-430.0,0.00021917,2]
[361691144,1747693877583,-917.56,0.00021917,2]
[361691145,1747693877593,-1059.44,0.00021917,2]
[361691146,1747693877602,-963.29,0.00021917,2]
[361691147,1747693877613,-2463.34,0.00021917,2]
[361691148,1747693877623,-1322.67,0.00021917,2]
[361691149,1747693877633,-989.85,0.00021917,2]
[361691150,1747693877643,-472.87,0.00021917,2]
[361691151,1747693877652,-1071.91,0.00021917,2]
[361691152,1747693877663,-1365.37,0.00021917,2]
[361691153,1747693877672,-435.96,0.00021917,2]
[361691154,1747693877682,-6970.38,0.00021917,2]
[361691155,1747693877692,-572.38,0.00021917,2]
[361691156,1747693877702,-492.52,0.00021917,2]
[361691157,1747693877711,-1276.02,0.00021917,2]
[361691158,1747693877721,-2285.96,0.00021917,2]
[361691159,1747693877730,-1674.68,0.00021917,2]
[361691160,1747693877740,-430.0,0.00021917,2]
[361691161,1747693877750,-430.0,0.00021917,2]
[361691162,1747693877759,-1177.1,0.00021917,2]
[361691163,1747693877769,-4144.0,0.00021917,2]
[361691164,1747693877779,-430.0,0.00021917,2]
[361691165,1747693877789,-4514.42,0.00021917,2]
[361691166,1747693877800,-589.39,0.00021917,2]
[361691167,1747693877809,-2345.01,0.00021917,2]
[361691168,1747693877819,-1255.98,0.00021917,2]
[361691169,1747693877829,-1428.09,0.00021917,2]
[361691170,1747693877839,-1007.3,0.00021917,2]
[361691171,1747693877849,-430.0,0.00021917,2]
[361691172,1747693877860,-430.0,0.00021917,2]
[361691173,1747693877870,-430.0,0.00021917,2]
[361691174,1747693877880,-567.37,0.00021917,2]
[361691175,1747693877890,-1170.71,0.00021917,2]
[361691176,1747693877901,-430.0,0.00021917,2]
[361691177,1747693877912,-6164.94,0.00021917,2]
[361691178,1747693877922,-1695.82,0.00021917,2]
[361691179,1747693877932,-1029.82,0.00021917,2]
[361691180,1747693877942,-1142.01,0.00021917,2]
[361691181,1747693877952,-430.0,0.00021917,2]
[361691182,1747693877962,-503.28,0.00021917,2]
[361691183,1747693877972,-1592.78,0.00021917,2]
[361691184,1747693877982,-1295.39,0.00021917,2]
[361691185,1747693877992,-670.07,0.00021917,2]
[361691186,1747693878002,-430.0,0.00021917,2]
[361691187,1747693878011,-1232.45,0.00021917,2]
[361691188,1747693878021,-1017.31,0.00021917,2]
[361691189,1747693878030,-430.0,0.00021917,2]
[361691190,1747693878041,-1326.53,0.00021917,2]
[361691191,1747693878051,-1258.46,0.00021917,2]
[361691192,1747693878061,-2643.08,0.00021917,2]
[361691193,1747693878071,-430.0,0.00021917,2]
[361691194,1747693878081,-1678.98,0.00021917,2]
[361691195,1747693878091,-430.0,0.00021917,2]
[361691196,1747693878100,-670.64,0.00021917,2]
[361691197,1747693878110,-872.02,0.00021917,2]
[361691198,1747693878119,-430.0,0.00021917,2]
[361691199,1747693878129,-430.0,0.00021917,2]
[361691200,1747693878139,-993.14,0.00021917,2]
[361691201,1747693878149,-747.98,0.00021917,2]
[361691202,1747693878159,-867.01,0.00021917,2]
[361691203,1747693878169,-561.84,0.00021917,2]
[361691204,1747693878179,-896.57,0.00021917,2]
[361691205,1747693878188,-846.37,0.00021917,2]
[361691206,1747693878198,-489.72,0.00021917,2]
[361691207,1747693878208,-507.94,0.00021917,2]
[361691208,1747693878218,-430.0,0.00021917,2]
[361691209,1747693878230,-551.77,0.00021917,2]
[361691210,1747693878241,-533.4,0.00021917,2]
[361691211,1747693878250,-546.01,0.00021917,2]
[361691212,1747693878260,-1186.61,0.00021917,2]
[361691213,1747693878270,-691.74,0.00021917,2]
[361691214,1747693878279,-536.58,0.00021917,2]
[361691215,1747693878290,-587.23,0.00021917,2]
[361691216,1747693878300,-1193.12,0.00021917,2]
[361691217,1747693878310,-1021.33,0.00021917,2]
[361691218,1747693878319,-1095.83,0.00021917,2]
[361691219,1747693878329,-286.64065286,0.00021917,2]
[361691220,1747693878339,-151.0,0.00021918,2]
[361691221,1747693878348,-151.0,0.00021918,2]
[361691222,1747693878358,-151.0,0.00021918,2]
[361691223,1747693878368,-151.0,0.00021918,2]
[361691224,1747693878378,-151.0,0.00021918,2]
[361691225,1747693878387,-151.0,0.00021918,2]
[361691226,1747693878398,-151.0,0.00021918,2]
[361691227,1747693878408,-151.0,0.00021918,2]
[361691228,1747693878571,-151.0,0.00021918,2]
[361691229,1747693878583,-151.0,0.00021918,2]
[361691230,1747693878592,-151.0,0.00021918,2]
[361691231,1747693878601,-151.0,0.00021918,2]
[361691232,1747693878611,-151.0,0.00021918,2]
[361691233,1747693878621,-151.0,0.00021918,2]
[361691234,1747693878630,-175.493073,0.00021918,2]
[361691235,1747693878639,-987.6123874,0.00021918,7]
[361691236,1747693878649,-152.0,0.00021918,2]
[361691237,1747693878660,-152.0,0.00021918,2]
[361691238,1747693878670,-152.0,0.00021918,2]
[361691239,1747693878680,-152.0,0.00021918,2]
[361691240,1747693878689,-152.0,0.00021918,2]
[361691241,1747693878699,-152.0,0.00021918,2]
[361691242,1747693878709,-152.0,0.00021918,2]
[361691243,1747693878719,-152.0,0.00021918,2]
[361691244,1747693878729,-152.0,0.00021918,2]
[361691245,1747693878738,-152.0,0.00021918,2]
[361691246,1747693878748,-152.0,0.00021918,2]
[361691247,1747693878758,-152.0,0.00021918,2]
[361691248,1747693878767,-152.0,0.00021918,2]
[361691249,1747693878777,-152.0,0.00021918,2]
[361691250,1747693878787,-152.0,0.00021918,2]
[361691251,1747693878797,-152.0,0.00021918,2]
[361691252,1747693878807,-152.0,0.00021918,2]
[361691253,1747693878815,-152.0,0.00021918,2]
[361691254,1747693878824,-152.0,0.00021918,2]
[361691255,1747693878834,-152.0,0.00021918,2]
[361691256,1747693878843,-152.0,0.00021918,2]
[361691257,1747693878852,-152.0,0.00021918,2]
[361691258,1747693878861,-152.0,0.00021918,2]
[361691259,1747693878871,-152.0,0.00021918,2]
[361691260,1747693878881,-152.0,0.00021918,2]
[361691261,1747693878890,-152.0,0.00021918,2]
[361691262,1747693878899,-152.0,0.00021918,2]
[361691263,1747693878909,-152.0,0.00021918,2]
[361691264,1747693878918,-152.0,0.00021918,2]
[361691265,1747693878928,-152.0,0.00021918,2]
[361691266,1747693878937,-152.0,0.00021918,2]
[361691267,1747693878946,-152.0,0.00021918,2]
[361691268,1747693878955,-152.0,0.00021918,2]
[361691269,1747693878965,-152.0,0.00021918,2]
[361691270,1747693878974,-152.0,0.00021918,2]
[361691271,1747693878984,-152.0,0.00021918,2]
[361691272,1747693878994,-152.0,0.00021918,2]
[361691273,1747693879003,-152.0,0.00021918,2]
[361691274,1747693879013,-152.0,0.00021918,2]
[361691275,1747693879022,-152.0,0.00021918,2]
[361691276,1747693879032,-152.0,0.00021918,2]
[361691277,1747693879041,-152.0,0.00021918,2]
[361691278,1747693879051,-152.0,0.00021918,2]
[361691279,1747693879061,-152.0,0.00021918,2]
[361691280,1747693879070,-152.0,0.00021918,2]
[361691281,1747693879079,-152.0,0.00021918,2]
[361691282,1747693879088,-152.0,0.00021918,2]
[361691283,1747693879098,-152.0,0.00021918,2]
[361691284,1747693879108,-152.0,0.00021918,2]
[361691285,1747693879118,-152.0,0.00021918,2]
[361691286,1747693879128,-269.44133094,0.00021918,2]
[361691287,1747693879137,-500.0,0.00021918,2]
[361691288,1747693879147,-500.0,0.00021918,2]
[361691289,1747693879157,-500.0,0.00021918,2]
[361691290,1747693879167,-310.29349771,0.00021918,2]
[361691291,1747693879176,-1000.0,0.00021921,2]
[361691292,1747693879187,-500.0,0.00021973,2]
[361691293,1747693879196,-500.0,0.00021973,2]
[361691294,1747693879206,-500.0,0.00021973,2]
[361691295,1747693879216,-3805.12910025,0.0002198,2]
[361691296,1747693879226,-3974.38,0.00022,7]
[361691297,1747693879239,-151298.77,0.00022,2]
[361691298,1747693879249,-349.58685094,0.00022,2]
[361691299,1747693879259,-1174.0,0.00022,15]
[361691300,1747693879269,-1713.25,0.00022,7]
[361691301,1747693879279,-570.35,0.00022,14]
[361691302,1747693879288,-186.0,0.00022,2]
[361691303,1747693879298,-170.0,0.00022,2]
[361691304,1747693879309,-559.0,0.00022,2]
[361691305,1747693879320,-1767.88815338,0.00022034,2]
[361691306,1747693879329,-2000.0,0.00022034,2]
[361691307,1747693879339,-1610.24654158,0.00022034,2]
[361691308,1747693879349,-2400.0,0.00022034,2]
[361691309,1747693879358,-560.72442184,0.00022034,2]
[361691310,1747693879368,-1159.3892112,0.00022038,6]
[361691311,1747693879378,-159.35616,0.00022052,6]
[361691312,1747693879388,-159.35616,0.00022056,5]
[361691313,1747693879397,-5000.0,0.00022129,2]
[361691314,1747693879407,-159.35616,0.00022136,6]
[361691315,1747693879416,-651.52,0.00022191,2]
[361691316,1747693879426,-430.0,0.00022191,2]
[361691317,1747693879436,-430.0,0.00022191,2]
[361691318,1747693879446,-732.74,0.00022191,2]
[361691319,1747693879455,-430.0,0.00022191,2]
[361691320,1747693879465,-171.29,0.00022191,2]
[361691321,1747693879474,-430.0,0.00022191,2]
[361691322,1747693879484,-430.0,0.00022191,2]
[361691323,1747693879494,-509.72,0.00022191,2]
[361691324,1747693879504,-430.0,0.00022191,2]